Cogmind - Beta 13 *** ADVENTURER MODE // 2024.04.12 @ 22:49:15 Player: SlyFyer Result: Destroyed by Y-54 Guardian with Gatling Laser Performance ------------- Evolutions (0) 0 Regions Visited (3) 600 Robots Destroyed (35) 175 Value Destroyed (1161) 1161 Prototype IDs (0) 0 Alien Tech Used (0) 0 Bonus (13) 13 TOTAL SCORE: 1949 Bonus ------- High Alert Combat Kills 13 Cogmind --------- Core Integrity 0/250 Matter 247/300 Energy 69/100 System Corruption 0% Temperature Cool (27) Movement Treading (240) Ox1 Location -7/Recycling Parts ------- > --- POWER (1) -------- (None) > --- PROPULSION (2) --- Light Treads > --- UTILITY (2) ------ Large Storage Unit Improved Light Armor Plating > --- WEAPON (2) ------- Makeshift Laser Grenade Launcher > --- INVENTORY (15) --- Light Treads Light Treads Spiked Treads Scrap Engine Disposable Heat Sink Medium Matter Pod (100) Terrain Scanner Seismic Detector Gatling Laser Battle Rifle Barrage Gun Makeshift Hammer Peak State ------------ > --- POWER ------------ (None) > --- PROPULSION ------- Light Treads Light Treads > --- UTILITY ---------- Large Storage Unit Improved Light Armor Plating > --- WEAPON ----------- Makeshift Laser Battle Cannon > --- INVENTORY -------- Light Treads Light Treads Spiked Treads Scrap Engine Disposable Heat Sink High-capacity Battery Medium Matter Pod Terrain Scanner Seismic Detector Gatling Laser Battle Rifle Barrage Gun Grenade Launcher Makeshift Hammer [Rating: 16] Favorites ----------- Power Light Ion Engine Engine Light Ion Engine Propulsion Light Treads Treads Light Treads Utility Large Storage Unit Device Terrain Scanner Storage Large Storage Unit Processor Visual Processing Unit Protection Improved Light Armor Plating Weapon EM Shotgun Energy Gun EM Shotgun Ballistic Gun Light Assault Rifle Ballistic Cannon Battle Cannon Launcher Grenade Launcher Impact Weapon Makeshift Hammer Build | -11 -10 -10 -7 ------- Run | Yrd Mat Sub Rec Slots Evolved . | . . . . Power . | . . . . Propulsion . | . . . . Utility . | . . . . Weapon . | . . . . Parts Attached 30 | 6 4 15 5 Power 3 | 1 . 2 . Engine 3 | 1 . 2 . Core . | . . . . Reactor . | . . . . Propulsion 6 | 2 . 2 2 Treads 6 | 2 . 2 2 Leg . | . . . . Wheel . | . . . . Hover . | . . . . Flight . | . . . . Utility 7 | 1 2 3 1 Device 2 | . . 2 . Storage 2 | 1 1 . . Processor 2 | . 1 1 . Hackware . | . . . . Protection 1 | . . . 1 Artifact . | . . . . Weapon 14 | 2 2 8 2 Energy Gun 8 | 1 2 4 1 Energy Cannon . | . . . . Ballistic Gun 2 | 1 . 1 . Ballistic Cannon 1 | . . 1 . Launcher 2 | . . 1 1 Special Weapon . | . . . . Impact Weapon 1 | . . 1 . Slashing Weapon . | . . . . Piercing Weapon . | . . . . Special Melee Weapon . | . . . . Unidentified Prototypes . | . . . . Parts Lost 10 | . . 8 2 Power 3 | . . 3 . Propulsion 2 | . . 1 1 Utility . | . . . . Weapon 5 | . . 4 1 Highest Loss Streak 2 | . . 2 2 To Critical Strikes . | . . . . Average Slot Usage (%) 96 | . 98 97 84 Engine 11 | . 14 12 . Treads 27 | . 28 27 28 Device 4 | . . 5 13 Storage 14 | . 14 14 14 Processor 8 | . 12 7 . Energy Gun 22 | . 25 22 14 Ballistic Gun 1 | . 2 1 . Ballistic Cannon 3 | . . 4 13 Naked Turns . | . . . . Heaviest Build 31 | 13 29 31 27 Greatest Support 40 | 40 40 40 40 Greatest Overweight (x) 1 | . . 1 . Average Overweight (x) . | . . . . Largest Inventory Capacity 15 | 8 15 15 15 Average Capacity 13 | 6 12 15 15 Most Carried 15 | 5 15 15 15 Average Carried 12 | 1 8 14 14 Final Capacity 15 | 8 15 15 15 Final Carried 15 | 1 15 14 13 Class Distribution -------------------- 100% | Mutant Dominant Class ---------------- Mutant | -10/Materials Mutant | -10/Subcaves Mutant | -7/Recycling Resources | -11 -10 -10 -7 ----------- Run | Yrd Mat Sub Rec Matter Collected 802 | 202 223 257 120 Remotely . | . . . . Salvage Created 1544 | . 658 562 324 Parts 81 | . 42 28 11 Haulers Intercepted 2 | . 2 . . Recyclers Shooed . | . . . . Parts Field Recycled . | . . . . Retrieved Matter . | . . . . Parts Self-Destructed 12 | . . 12 . Prevented 1 | . . 1 . Kills | -11 -10 -10 -7 ------- Run | Yrd Mat Sub Rec Combat Hostiles Destroyed 28 | . 11 12 5 Guns 18 | . 10 7 1 Cannons 4 | . . 1 3 AOE 2 | . 1 . 1 Classes Destroyed 8 | . 5 3 . Hauler 2 | . 2 . . Recycler 1 | . 1 . . Turret 1 | . . 1 . Watcher 3 | . 3 . . Swarmer 5 | . 3 2 . Grunt 9 | . 8 . 1 Sentry 5 | . . 1 4 Subdweller 9 | . . 9 . Best Kill Streak 6 | . 6 3 2 Combat Bots Only 5 | . 5 3 2 Max Kills in Single Turn 1 | . 1 1 1 Gunslinging . | . . . . Exploded 1 | . 1 . 1 Melee . | . . . . Uniques/NPCs Destroyed . | . . . . Combat | -11 -10 -10 -7 -------- Run | Yrd Mat Sub Rec Hostile Shots Fired 251 | . 41 125 85 Missed 91 | . 12 48 31 Damage Taken 1472 | . 238 891 343 Core 253 | . 29 136 88 Absorbed by Shields . | . . . . Ignored by Resistances 433 | . 76 237 120 Core Remaining (%) 100 | 100 . . . Volleys Fired 110 | . 37 53 20 Largest 2 | . 2 2 2 Hottest 90 | . 80 90 89 Shots Fired 220 | . 74 106 40 Gun 179 | . 74 85 20 Cannon 35 | . . 16 19 Launcher 6 | . . 5 1 Special . | . . . . Kinetic 65 | . 25 21 19 Thermal 20 | . . . 20 Explosive 6 | . . 5 1 Electromagnetic 129 | . 49 80 . Robot Hit Streak 47 | . 9 47 38 Robot Miss Streak 4 | . 4 3 . Penetration Max . | . . . . Secondary Targets 3 | . 2 1 . Max Gunslinging Chain 1 | . 1 1 . Shots Hit Robots 153 | . 50 81 22 Core Hits 74 | . 25 32 17 Critical Kills . | . . . . Critical Parts Destroyed . | . . . . Critical Strikes 3 | . 2 . 1 Burn 1 | . . . 1 Corrupt 2 | . 2 . . Melee Attacks 1 | . . 1 . Impact 1 | . . 1 . Slashing . | . . . . Piercing . | . . . . Sneak Attacks . | . . . . Combat Hostiles . | . . . . Follow-up Attacks . | . . . . Damage Inflicted 2562 | . 736 1235 591 Guns 1755 | . 628 942 185 Cannons 392 | . . 196 196 Explosions 415 | . 108 97 210 Melee . | . . . . Ramming . | . . . . Kinetic 584 | . 133 255 196 Thermal 293 | . 108 . 185 Explosive 307 | . . 97 210 Electromagnetic 1378 | . 495 883 . Impact . | . . . . Slashing . | . . . . Piercing . | . . . . Highest Corruption . | . . . . Average Corruption . | . . . . Corruption Purged . | . . . . Corruption Blocked . | . . . . Overload Shots . | . . . . Overflow Damage 43 | . . 43 . Projectiles 43 | . . 43 . Explosions . | . . . . Melee . | . . . . Knockbacks 4 | . . 4 . Impact . | . . . . Kinetic 4 | . . 4 . Secondary . | . . . . Self-Inflicted Damage 1 | . . . 1 Shots 1 | . . . 1 Rammed . | . . . . Targets Rammed . | . . . . Kicked . | . . . . Crushed . | . . . . Highest Temperature 168 | . 168 18 114 Average Temperature 37 | . 42 7 32 Received Heat Transfer 588 | . 138 312 138 Siege Activations . | . . . . Robots Corrupted 4 | . . 4 . Combat Hostiles 4 | . . 4 . Parts Fried 16 | . 4 12 . Impact Corruptions . | . . . . Robots Melted . | . . . . Combat Hostiles . | . . . . Parts Melted 2 | . . 1 1 Heat Transferred 581 | . 100 . 481 Parts Sabotaged . | . . . . Parts Stolen . | . . . . Parts Stripped . | . . . . Power Chain Reactions 2 | . 2 . . Alert | -11 -10 -10 -7 ------- Run | Yrd Mat Sub Rec Peak Influence 413 | . 301 . 413 Initial 393 | . . . 393 Average 138 | . 98 . 282 Maximum Alert Level 2 | . 1 . 2 Low Security (%) 66 | 100 81 . 15 Level 1 31 | . 18 . 76 Level 2 1 | . . . 7 Level 3 . | . . . . Level 4 . | . . . . Level 5 . | . . . . High Security . | . . . . Max Security . | . . . . Squads Dispatched 3 | . 3 . . Investigation 3 | . 3 . . Extermination . | . . . . Reinforcement . | . . . . Assault . | . . . . Garrison . | . . . . Intercept . | . . . . Searches Triggered . | . . . . Construction Impeded . | . . . . Haulers Reinforced . | . . . . Active Scanning Responses . | . . . . Cargo Convoy Interrupts . | . . . . Stealth | -11 -10 -10 -7 --------- Run | Yrd Mat Sub Rec Distress Signals 1 | . 1 . . Communications Jammed . | . . . . Distress Signals . | . . . . Times Spotted 79 | . 14 56 9 Peak Tracking Total 5 | . 4 4 5 Tactical Retreats 4 | . . 4 . Traps | -11 -10 -10 -7 ------- Run | Yrd Mat Sub Rec Traps Triggered 3 | . 1 2 . Indirectly . | . . . . Trap Hack Attempts . | . . . . Triggered . | . . . . Disarmed . | . . . . Reprogrammed . | . . . . Reused . | . . . . Traps Extracted . | . . . . Installed . | . . . . Triggered . | . . . . Machines | -11 -10 -10 -7 ---------- Run | Yrd Mat Sub Rec Machines Disabled 10 | . 2 3 5 Max in Single Turn 2 | . 2 1 1 Machines Repaired . | . . . . Machines Dismantled . | . . . . Machines Sabotaged . | . . . . Overloaded Fab Kills . | . . . . Hacking | -11 -10 -10 -7 --------- Run | Yrd Mat Sub Rec Machines Accessed 14 | . 6 1 7 Terminals 8 | . 6 . 2 Fabricators . | . . . . Repair Stations . | . . . . Recycling Units 5 | . . . 5 Scanalyzers . | . . . . Garrison Access . | . . . . Total Hacks 36 | . 14 3 19 Successful 17 | . 7 3 7 Failed 19 | . 7 . 12 Catastrophic 1 | . 1 . . Database Lockouts . | . . . . Manual 9 | . 6 . 3 Terminals 20 | . 14 . 6 Fabricators . | . . . . Repair Stations . | . . . . Recycling Units 13 | . . . 13 Scanalyzers . | . . . . Garrison Access . | . . . . Terminal Hacks 12 | . 7 3 2 Record 3 | . . 3 . Branch Access Points 1 | . 1 . . Terminal Index 1 | . 1 . . Alert Level 2 | . 1 . 1 Unreport Threat 1 | . . . 1 Locate Traps 1 | . 1 . . Dispatch Records 1 | . 1 . . Hauler Manifests 2 | . 2 . . Fabricator Hacks . | . . . . Repair Station Hacks . | . . . . Recycling Unit Hacks 5 | . . . 5 Retrieve Components 5 | . . . 5 Scanalyzer . | . . . . Garrison Access Hacks . | . . . . Unauthorized Hacks . | . . . . Terminals . | . . . . Fabricators . | . . . . Repair Stations . | . . . . Recycling Units . | . . . . Scanalyzers . | . . . . Garrison Access . | . . . . Data Cores Recovered . | . . . . Used . | . . . . Hacking Detections 9 | . 4 . 5 Full Trace Events 3 | . 2 . 1 Feedback Events . | . . . . Feedback Blocked . | . . . . Robot Schematics Acquired . | . . . . Robots Built . | . . . . Authchips . | . . . . Time . | . . . . Total Robot Build Rating . | . . . . Part Schematics Acquired . | . . . . Parts Built . | . . . . Authchips . | . . . . Time . | . . . . Total Part Build Rating . | . . . . Parts Repaired . | . . . . Time . | . . . . Parts Recycled . | . . . . Recycled Matter . | . . . . Retrieved Matter . | . . . . Retrieved Components 11 | . . . 11 Parts Scanalyzed . | . . . . Part Schematics Acquired . | . . . . Parts Damaged . | . . . . Bothacking | -11 -10 -10 -7 ------------ Run | Yrd Mat Sub Rec Used RIF Installer . | . . . . Robots Hacked . | . . . . Non-combat . | . . . . Combat . | . . . . Robot Hacks Applied . | . . . . Relay Couplers Released . | . . . . Fabnet Peak Effective % . | . . . . Robots Rewired . | . . . . Allies Hacked . | . . . . Hacks Repelled . | . . . . Allies | -11 -10 -10 -7 -------- Run | Yrd Mat Sub Rec Total Allies . | . . . . Largest Group . | . . . . Highest-Rated Group . | . . . . Highest-Rated Ally . | . . . . Total Orders . | . . . . Ally Attacks . | . . . . Total Damage . | . . . . Kills . | . . . . Allies Corrupted . | . . . . Allies Melted . | . . . . Intel | -11 -10 -10 -7 ------- Run | Yrd Mat Sub Rec Robot Analysis Total . | . . . . Derelict Logs Recovered 1 | . . 1 . Drone Launches . | . . . . Drone Recoveries . | . . . . Exploration | -11 -10 -10 -7 ------------- Run | Yrd Mat Sub Rec Turns Passed 4250 | 62 1483 2229 476 Spaces Moved 2034 | 43 503 1244 244 Core 24 | 24 . . . Treads 2010 | 19 503 1244 244 Legs . | . . . . Wheels . | . . . . Hover . | . . . . Flight . | . . . . Fastest Speed 50 | 50 160 160 160 Average Speed 158 | 98 160 160 160 Slowest Speed 240 | 160 160 240 160 Overloaded Moves . | . . . . Propulsion Burnouts . | . . . . Robots Hopped . | . . . . Cave-ins Triggered . | . . . . Exploration Rate (%) 44 | 4 74 59 41 Regions Visited 3 Branch Regions 2 Pre-discovered Areas 2 | . . 2 . Known Exits Taken . | . . . . Unknown Exits Taken 3 | 1 1 1 . Scrap Searched 7 | . . 7 . Spaces Dug . | . . . . Terrain Destroyed 10 | . . 9 1 Melee . | . . . . Projectile 1 | . . . 1 AOE 9 | . . 9 . Terrain Rammed . | . . . . Walls Destroyed . | . . . . Machines Disabled . | . . . . Actions | -11 -10 -10 -7 --------- Run | Yrd Mat Sub Rec Total 2836 | 62 1112 1369 293 Wait 610 | 9 548 38 15 Move 2031 | 42 502 1243 244 Hop . | . . . . Pick Up 37 | 5 18 10 4 Fast Attach 6 | 2 1 3 . Attach 13 | 4 1 7 1 Detach . | . . . . Swap 11 | . 2 5 4 Drop 17 | . 3 9 5 Fire 110 | . 37 53 20 Melee 1 | . . 1 . Ram . | . . . . Kick . | . . . . Crush . | . . . . Escape Stasis . | . . . . Rewire . | . . . . Trap . | . . . . Miscellaneous . | . . . . Route ------- -11/Scrapyard -10/Materials (discovered 5 exits: [*Mat x2] / *Min x2 / *Sub) -10/Subcaves (discovered 3 exits: [*Mat x2] / *Rec) -7/Recycling History --------- Turn | Location | Event 14 | -11/Scrapyard | Discovered new exit (range 16) 63 | -11/Scrapyard | Entered Materials 163 | -10/Materials | Discovered new exit (range 13) 315 | -10/Materials | Identified exit to Mines 327 | -10/Materials | Build established: Mutant 1068 | -10/Materials | Discovered new exit (range 3) 1505 | -10/Materials | Discovered new exit (range 5) 1546 | -10/Materials | Entered Subcaves 1750 | -10/Subcaves | Discovered new exit (range 8) 1835 | -10/Subcaves | Learned location of Zion (-6) 2150 | -10/Subcaves | Disturbed a concealed Subdweller 2205 | -10/Subcaves | A swath of the cavern ceiling suddenly collapsed 2933 | -10/Subcaves | Discovered new exit (range 7) 2979 | -10/Subcaves | Visited Clippyterm 3001 | -10/Subcaves | Met a Zionite searching for "candidates" 3086 | -10/Subcaves | Shifting Twisted Machinery released Sub. Power Source 3727 | -10/Subcaves | Core integrity fell below 50% 3733 | -10/Subcaves | Discovered new exit (range 10) 3775 | -10/Subcaves | Entered Recycling 3776 | -7/Recycling | Found Scrap Engine 4199 | -7/Recycling | Core integrity fell below 20% 4251 | -7/Recycling | Destroyed by Y-54 Guardian with Gatling Laser Last Messages --------------- 04227_ Connecting with Recycling Unit... >>Retrieve(Components) Retrieving 2 components... Adv. Assault Cannon Powered Hammer 04227_ Recycling Unit disabled. 04241_ Y-54 Guardian springs to life. 04242_ H-55 Commando springs to life. 04242_ G-47 Trooper springs to life. 04242_ Y-54 Guardian springs to life. 04243_ Slug penetrates Wall. 04245_ Dropped Hcp. Battery. 04245_ Y-54 Guardian destroyed. 04246_ Extracted 88 energy. 04246_ Slug penetrates Wall. 04246_ Battle Cannon destroyed. 04249_ Slug penetrates P-60 Hacker. 04251_ A-02 Transporter destroyed. 04251_ G-47 Trooper destroyed. 04251_ Lgt. Treads destroyed. Map ----- +----------------------------------------------------+ | ##??#?#?## ###### ##????? ????????????????????? | | #?#??????# ##????##?#?????????????????????????? | | #??##?####+#########??????????????????????????? | | #?#?### #??????#???????????????????? | | ###?## #?# ???????????????????????? | | #??#### #???????????? #????????????? | | #?????# #####+##### #????????????? | | #??#??# # #????????????? | | ###???# / +????????????? | | "#???# # #????????????? | | !Y"###?# # u##### #????????????? | | ""##??# # #????????? ??????????? | | !!###???# # #?#??????????????????? | | #???#?# # #????????????????????? | | #?????# # ###?#????????????????? | | #?#???############## r###??????????????????? | | ##??###??????????#" % r ##??????????????????? | | #??????#??????#??#"Y / ###??????????????????? | | #???????#????????#"" ] %%#????#??//#??????????? | | #???#????#???????### ####### //##?????????? | | #??#?#???????????#/ r u ?????????? | | #????##?????#????# / ????????? | | ##?????#?#???????#/ ????????? | | #?????#???#????#?### ! ????????? | | ######?????????????# !!! ###########??????????? | | ##"""#??#??????????###@###???#????????????????? | | ##"T"######?????? ? p%[ ?? ????? ????????????? | | # """ ###????? [ Y% ???????????????????? | | # "T" ""#??? % g #?????????????????? | | + Y"#??# h #?????????????????? | | !! # "#??#r %g l #?????????????????? | | [ # ###??# i #?????????????????? | | %% + #????# ! #?????????????????? | | # #????# =]b #?????????????????? | | # #????# %k kt r#?????????????????? | | ! ###########????# iu #?????????????????? | | #??#??#????????# ! ab +?????????????????? | | #?????????#????# ! b s #?????????????????? | | ####?????????????###############?????????????????? | | ?????#???????????????????????????????????????????? | | #?????##????????#????????????????????????????????? | | ?????????????????????????????????????????????????? | | ??????#??????????????????????????????????????????? | | ?????????????????????????????????????????????????? | | ?????????????????????????????????????????????????? | | ?????????????????????????????????????????????????? | | ?????????????????????????????????????????????????? | | ?????????#???????????????????????????????????????? | | ?????????????????????????????????????????????????? | | ?????????????????????????????????????????????????? | +----------------------------------------------------+ Best States ------------- Heat Dissipation 25 Energy Generation 10 Energy Capacity 250 Matter Stores 300 Matter Capacity 300 Sight Range 21 Terrain Scan Range 14 Terrain Scan Density 10 Armor Coverage 150 Resistance: KI 20 Resistance: TH 20 Resistance: EX 20 Resistance: EM 20 Resistance: I 20 Resistance: S 20 Resistance: P 20 Evasion (%) 50 Recoil Reduction 2 Offensive Hacking 10 Item Schematics ----------------- None Robot Schematics ------------------ None Fabricated ------------ Nothing Alien Tech Used ----------------- None Achievements -------------- None Challenges ------------ None Game ------ Seed GrenadeRefineryMallet Manual? 0 Play Time 00:26:58 Cumulative 30.7 hours Start 2024.04.12 @ 15:42:28 End 2024.04.12 @ 22:49:15 Sessions 1 Manual Loads 0 Difficulty Adventurer Special Mode None Game No. 17 Rogue 0 Adventurer 17 Explorer 0 Win Type - Total 0 Types 0/0/0/0/0/0/0/0/0 Lore% 29 Gallery% 36 Achievement% 30 Wizard Run 0 Options --------- Layout 0 ASCII 0 Keyboard 0 Movement Mouse Keybinds 0 Fullscreen 1 Font 18/SmallcapsGlow Map View 76x50 Zoom Use 59% Tactical HUD 1 Map Filters NONE Filters NONE Steam 1 RUN: a3161a01-0aed-42d1-a6fe-44eb40640756